bitfinex-derivatives/quotes_SOLF0:USTF0_20250609
["timestamp","ask_amount","ask_price","bid_price","bid_amount"]
[1749441356499,0.04583359,151.62,151.59,4.31545735]
[1749441356792,6.63823359,151.62,151.59,4.31545735]
[1749441357999,6.63823359,151.62,151.59,10.90885735]
[1749441359100,0.04583359,151.62,151.6,6.593]
[1749441360003,6.63803359,151.62,151.59,10.90875735]
[1749441360300,0.04583359,151.62,151.59,10.90875735]
[1749441360702,6.63823359,151.62,151.59,4.31545735]
[1749441361593,0.04583359,151.62,151.59,0.04516917]
[1749441361999,4.43292041,151.61,151.59,0.04516917]
[1749441362202,4.43292041,151.6,151.59,0.04516917]
[1749441362402,4.43291476,151.6,151.59,0.04516917]
[1749441362703,4.43290984,151.6,151.59,0.04516917]
[1749441362898,4.43316469,151.6,151.59,0.04516917]
[1749441363404,4.43316463,151.6,151.59,0.04516917]
[1749441363600,11.02804475,151.6,151.59,0.04516917]
[1749441363800,11.02804414,151.6,151.59,0.04516917]
[1749441364002,6.593,151.6,151.59,0.04516917]
[1749441364203,11.02804421,151.6,151.59,0.04516917]
[1749441364499,11.02902471,151.6,151.59,0.04516917]
[1749441364693,6.5928,151.61,151.59,0.04516917]
[1749441364899,4.43603661,151.6,151.59,0.04516917]
[1749441365105,6.5928,151.61,151.59,0.04516917]
[1749441365607,4.43602525,151.6,151.59,0.04516917]
[1749441365802,6.5928,151.61,151.59,0.04516917]
[1749441366907,4.43601395,151.6,151.59,0.04516917]
[1749441367208,6.5928,151.61,151.59,0.04516917]
[1749441368606,4.42330634,151.6,151.59,0.04516917]
[1749441369102,6.5928,151.61,151.59,0.04516917]
[1749441369408,4.42055487,151.6,151.59,0.04516917]
[1749441370307,11.01355487,151.6,151.59,0.04516917]
[1749441370703,11.01267202,151.6,151.59,0.04516917]
[1749441371008,11.01271727,151.6,151.59,0.04516917]
[1749441371207,11.01270863,151.6,151.59,0.04516917]
[1749441371408,11.01270863,151.6,151.55,34.8]
[1749441371409,4.27028818,151.6,151.55,34.8]
[1749441371597,4.27028818,151.58,151.52,414.62]
[1749441371801,4.41976174,151.57,151.52,414.62]
[1749441372002,6.5955,151.55,151.52,414.62]
[1749441372508,6.64630126,151.55,151.52,414.66989661]
[1749441372807,0.05080126,151.55,151.52,41.44639661]
[1749441373104,0.05080126,151.55,151.52,34.84989661]
[1749441374106,0.05080126,151.55,151.52,41.44619661]
[1749441374509,5.39296876,151.54,151.52,34.84989661]
[1749441374709,0.05080126,151.55,151.53,6.596]
[1749441377107,0.05080126,151.55,151.54,6.5956]
[1749441377313,0.05080126,151.55,151.54,10.86588818]
[1749441390320,0.05080126,151.55,151.54,6.5956]
[1749441390529,0.05080126,151.55,151.54,10.86588818]
[1749441392135,6.15808317,151.61,151.58,6.5936]
[1749441392329,9.77926081,151.6,151.56,38.53028818]
[1749441392526,9.77926081,151.59,151.58,4.27028818]
[1749441393031,9.77926081,151.59,151.57,4.27028818]
[1749441393227,0.04347525,151.6,151.58,6.5936]
[1749441393427,9.77937739,151.59,151.58,6.5936]
[1749441394132,5.38740146,151.59,151.58,6.5936]
[1749441394332,9.77937738,151.59,151.58,6.5936]
[1749441395331,5.38740146,151.59,151.58,6.5936]
[1749441395730,9.77937738,151.59,151.58,6.5936]
[1749441396833,5.38740146,151.59,151.58,6.5936]
[1749441397333,9.78847036,151.59,151.58,6.5936]
[1749441397528,9.79306087,151.59,151.58,6.5936]
[1749441397728,9.79305795,151.59,151.58,6.5936]
[1749441398538,9.787629,151.59,151.58,6.5936]
[1749441399147,5.38740146,151.59,151.58,6.5936]
[1749441399341,9.787629,151.59,151.58,6.5936]
[1749441399542,9.78762041,151.59,151.58,6.5936]
[1749441400640,9.78745785,151.59,151.58,6.5936]
[1749441401141,5.38740146,151.59,151.58,6.5936]
[1749441401340,9.78290843,151.59,151.58,6.5936]
[1749441402242,9.78291254,151.59,151.58,6.5936]
[1749441402639,5.38740146,151.59,151.58,6.5936]
[1749441402944,9.7829113,151.59,151.58,6.5936]
[1749441403845,9.78288776,151.59,151.58,6.5936]
[1749441404649,5.38740146,151.59,151.58,6.5936]
[1749441404945,9.7828907,151.59,151.58,6.5936]
[1749441405244,9.7828907,151.59,151.58,9.32686854]
[1749441405634,9.78295309,151.59,151.58,9.32686854]
[1749441406244,5.38740146,151.59,151.58,9.32686854]
[1749441406551,9.78750246,151.59,151.58,9.32686854]
[1749441406740,9.78750253,151.59,151.58,9.32686854]
[1749441407041,5.38740146,151.59,151.58,9.32686854]
[1749441407245,9.78762876,151.59,151.58,6.5936]
[1749441407443,9.78762876,151.59,151.58,9.32686854]
[1749441407643,9.78765209,151.59,151.58,9.32686854]
[1749441409344,9.78026485,151.59,151.58,9.32686854]
[1749441409545,16.37366608,151.59,151.58,2.73326854]
[1749441409744,12.51354322,151.59,151.56,0.04818457]
[1749441409943,0.04347525,151.6,151.56,0.04818457]
[1749441409944,12.51361595,151.58,151.56,0.04818457]
[1749441410151,9.78034975,151.57,151.56,0.04818457]
[1749441411446,9.78035923,151.57,151.56,0.04818457]
[1749441411642,11.98170146,151.57,151.56,0.04818457]
[1749441411847,16.37484971,151.57,151.56,0.04818457]
[1749441412855,6.5961,151.53,151.52,33.68]
[1749441413051,5.40021876,151.53,151.52,33.68]
[1749441413852,9.79440287,151.53,151.52,33.68]
[1749441414353,5.40021876,151.53,151.52,33.68]
[1749441415142,11.99631876,151.53,151.51,420.18395317]
[1749441415348,0.04690655,151.54,151.51,420.18395317]
[1749441415548,5.3852068,151.53,151.51,420.18395317]
[1749441415847,0.04690655,151.54,151.51,420.18395317]
[1749441416044,5.38406796,151.53,151.51,33.72705317]
[1749441416249,0.04690655,151.54,151.51,33.72705317]
[1749441416444,5.3846248,151.53,151.51,33.72705317]
[1749441416653,6.5961,151.53,151.51,33.72705317]
[1749441418157,5.38251329,151.52,151.51,33.72705317]
[1749441418846,6.5961,151.53,151.51,33.72705317]
[1749441419655,6.64270655,151.54,151.51,40.32395317]
[1749441419956,5.38049909,151.53,151.51,40.32395317]
[1749441420254,6.64270655,151.54,151.51,40.32395317]
[1749441420454,5.37493644,151.53,151.51,40.32395317]
[1749441420655,6.64270655,151.54,151.51,40.32395317]
[1749441420956,5.37484982,151.53,151.51,40.32395317]
[1749441421154,6.64270655,151.54,151.51,40.32395317]
[1749441421454,5.37246555,151.53,151.51,33.72705317]
[1749441421647,0.04690655,151.54,151.51,33.72705317]
[1749441421849,5.37238038,151.53,151.51,33.72705317]
[1749441422049,6.64260655,151.54,151.51,40.32375317]
[1749441422252,5.37160389,151.53,151.51,40.32375317]
[1749441422454,6.64260655,151.54,151.51,40.32375317]
[1749441422649,5.37149866,151.53,151.51,40.32375317]
[1749441422955,6.64260655,151.54,151.52,6.5965]
[1749441423258,5.3712123,151.53,151.52,6.5965]
[1749441424150,6.64260655,151.54,151.52,6.5965]
[1749441424654,5.36975478,151.53,151.52,6.5965]
[1749441424844,5.36964959,151.53,151.52,6.5965]
[1749441425249,6.64260655,151.54,151.52,6.5965]
[1749441425651,5.3718523,151.53,151.52,6.5965]
[1749441425857,6.64260655,151.54,151.52,6.5965]
[1749441426759,6.64260655,151.54,151.51,40.32385317]
[1749441433262,6.64260655,151.54,151.51,43.05946021]
[1749441448469,5.3752684,151.53,151.51,43.05946021]
[1749441448677,6.64260655,151.54,151.51,43.05946021]
[1749441448872,5.37654595,151.53,151.51,43.05946021]
[1749441449075,6.64260655,151.54,151.51,43.05946021]
[1749441449276,5.37653486,151.53,151.51,43.05946021]
[1749441449471,6.64260655,151.54,151.51,43.05946021]
[1749441449666,5.3765875,151.53,151.51,43.05946021]
[1749441449866,6.64260655,151.54,151.52,6.5964]
[1749441450079,5.37798549,151.53,151.52,6.5964]
[1749441452978,5.37798549,151.53,151.52,9.33200704]
[1749441453181,0.04690655,151.54,151.53,6.5961]
[1749441453380,5.43022498,151.54,151.53,9.33170704]
[1749441453569,9.79565415,151.54,151.53,9.33170704]
[1749441453977,5.43022498,151.54,151.53,9.33170704]
[1749441456483,9.7993741,151.54,151.53,9.33170704]
[1749441456781,9.80393294,151.54,151.53,6.5961]
[1749441456987,5.43022498,151.54,151.53,6.5961]
[1749441457177,9.80418588,151.54,151.53,6.5961]
[1749441457373,9.80418717,151.54,151.53,6.5961]
[1749441457788,5.43022498,151.54,151.53,6.5961]
[1749441457982,9.80418717,151.54,151.51,36.46266021]
[1749441458174,9.75728062,151.53,151.51,36.46266021]
[1749441458379,5.38331843,151.52,151.51,36.46266021]
[1749441458579,5.38331843,151.52,151.51,43.05956021]
[1749441459384,9.75721262,151.52,151.51,43.05956021]
[1749441459683,5.38331843,151.52,151.51,43.05956021]
[1749441459886,9.75720653,151.52,151.51,43.05956021]
[1749441460089,5.38331843,151.52,151.51,43.05956021]
[1749441461088,9.75722828,151.52,151.51,43.05956021]
[1749441461490,9.75722828,151.52,151.51,33.72705317]
[1749441461988,9.75722828,151.52,151.51,40.32395317]
[1749441462392,5.38331843,151.52,151.51,40.32395317]
[1749441462587,9.75025514,151.52,151.51,40.32395317]
[1749441462788,5.38331843,151.52,151.51,43.05956021]
[1749441463189,0.04690655,151.54,151.53,6.5961]
[1749441463493,9.84017468,151.54,151.53,2.73560704]
[1749441464083,9.83858384,151.54,151.52,9.33200704]
[1749441464288,5.4262616,151.53,151.52,9.33200704]
[1749441465295,0.04690655,151.54,151.53,6.5961]
[1749441465495,5.46919228,151.54,151.53,9.33170704]
[1749441475500,5.46919228,151.54,151.53,6.5961]
[1749441475702,5.46919228,151.54,151.53,9.33170704]
[1749441477798,12.06479228,151.54,151.52,2.73560704]
[1749441477992,9.79461069,151.53,151.52,33.04]
[1749441478191,9.79462113,151.53,151.52,33.04]
[1749441478599,5.42228573,151.53,151.52,33.04]
[1749441479103,9.79453306,151.53,151.52,33.04]
[1749441479296,16.39063306,151.53,151.52,33.04]
[1749441479992,9.79452472,151.53,151.52,35.77560704]
[1749441480304,9.79452052,151.53,151.52,35.77560704]
[1749441480504,9.79452031,151.53,151.52,35.77560704]
[1749441480697,9.79452031,151.53,151.52,42.37210704]
[1749441481201,9.79005547,151.53,151.52,42.37210704]
[1749441481598,9.78563414,151.53,151.52,42.37210704]
[1749441481805,5.42228573,151.53,151.52,42.37210704]
[1749441482013,9.78563414,151.53,151.52,42.37210704]
[1749441482305,5.42228573,151.53,151.52,35.77560704]
[1749441482502,9.78563414,151.53,151.52,35.77560704]
[1749441483702,9.78564024,151.53,151.52,35.77560704]
[1749441485506,9.78577184,151.53,151.52,35.77560704]
[1749441485802,9.7856198,151.53,151.52,35.77560704]
[1749441486203,9.78106525,151.53,151.52,35.77560704]
[1749441487005,9.7818232,151.53,151.52,35.77560704]
[1749441487305,5.42228573,151.53,151.52,35.77560704]
[1749441487605,5.42228573,151.53,151.52,42.37210704]
[1749441494111,0.04690655,151.54,151.53,6.5961]
[1749441494316,9.82759601,151.54,151.53,9.33170704]
[1749441494612,5.46760334,151.54,151.53,9.33170704]
[1749441495107,9.82762693,151.54,151.53,9.33170704]
[1749441495313,5.46760334,151.54,151.53,9.33170704]
[1749441495711,9.82755456,151.54,151.53,9.33170704]
[1749441496214,9.82767483,151.54,151.53,9.33170704]
[1749441496411,9.8325231,151.54,151.53,9.33170704]
[1749441496611,9.83252317,151.54,151.53,9.33170704]
[1749441496813,5.46760334,151.54,151.53,9.33170704]
[1749441497915,0.04690655,151.54,151.53,9.33170704]
[1749441500622,5.47163083,151.54,151.53,9.33170704]
[1749441501019,0.04690655,151.54,151.53,9.33170704]
[1749441504619,5.47392704,151.54,151.53,9.33170704]
[1749441505519,0.04690655,151.54,151.53,9.33170704]
[1749441508114,5.47454814,151.54,151.53,9.33170704]
[1749441508423,0.04690655,151.54,151.53,9.33170704]
[1749441516131,0.04690655,151.54,151.53,2.73560704]
[1749441516334,5.47627245,151.54,151.53,2.73560704]
[1749441516525,9.85784494,151.54,151.53,2.73560704]
[1749441516724,9.85783617,151.54,151.53,2.73560704]
[1749441517428,16.45373617,151.54,151.52,35.77560704]
[1749441517634,5.4293659,151.53,151.52,35.77560704]
[1749441518928,5.4293659,151.53,151.52,42.37210704]
[1749441521838,5.4293659,151.53,151.52,35.77560704]
[1749441522441,5.4293659,151.53,151.52,42.37210704]
[1749441523642,5.4293659,151.53,151.52,35.77560704]
[1749441525043,12.0254659,151.53,151.52,35.77560704]
[1749441528447,5.4293659,151.53,151.52,35.77560704]
[1749441534653,12.0254659,151.53,151.52,35.77560704]
[1749441535351,5.4293659,151.53,151.52,35.77560704]
[1749441540555,5.4293659,151.53,151.52,42.37210704]
[1749441540854,5.4293659,151.53,151.52,9.33210704]
[1749441541758,0.04690655,151.54,151.53,6.5961]
[1749441541959,5.46850591,151.54,151.53,9.33170704]
[1749441550360,5.46850591,151.54,151.53,42.15170704]
[1749441552163,12.06410591,151.54,151.53,32.82]
[1749441552463,16.43838877,151.54,151.53,32.82]
[1749441552860,9.84278877,151.54,151.53,32.82]
[1749441553057,9.84290156,151.54,151.53,32.82]
[1749441553470,9.84289355,151.54,151.53,35.55560704]
[1749441553868,9.84274792,151.54,151.53,35.55560704]
[1749441554163,5.46850591,151.54,151.53,35.55560704]
[1749441554469,9.84274792,151.54,151.53,35.55560704]
[1749441555169,5.46850591,151.54,151.53,35.55560704]
[1749441555562,9.84342838,151.54,151.53,35.55560704]
[1749441555759,9.84340714,151.54,151.53,42.15170704]
[1749441555969,5.46850591,151.54,151.53,42.15170704]
[1749441558069,9.84386239,151.54,151.53,42.15170704]
[1749441558264,5.46850591,151.54,151.53,42.15170704]
[1749441558669,9.84381675,151.54,151.53,42.15170704]
[1749441558868,5.46850591,151.54,151.53,42.15170704]
[1749441560375,9.84460452,151.54,151.53,42.15170704]
[1749441560669,5.46850591,151.54,151.53,42.15170704]
[1749441560860,9.84461978,151.54,151.53,42.15170704]
[1749441561265,9.84917719,151.54,151.53,42.15170704]
[1749441561462,9.84916494,151.54,151.53,42.15170704]
[1749441562277,9.84840757,151.54,151.53,42.15170704]
[1749441562665,9.8484063,151.54,151.53,42.15170704]
[1749441562869,5.46850591,151.54,151.53,42.15170704]
[1749441563072,9.8484063,151.54,151.53,35.55560704]
[1749441564177,9.84837288,151.54,151.53,35.55560704]
[1749441564475,9.8483971,151.54,151.53,35.55560704]
[1749441564677,9.8483729,151.54,151.53,35.55560704]
[1749441565377,9.8483729,151.54,151.53,32.82]
[1749441565873,5.46850591,151.54,151.53,32.82]
[1749441566076,9.84862267,151.54,151.53,32.82]
[1749441566472,5.46850591,151.54,151.53,32.82]
[1749441566872,9.84860407,151.54,151.53,32.82]
[1749441567367,9.84914155,151.54,151.53,32.82]
[1749441567569,9.84916923,151.54,151.53,32.82]
[1749441567970,9.8491705,151.54,151.53,32.82]
[1749441569477,5.46850591,151.54,151.53,32.82]
[1749441569681,9.84832348,151.54,151.53,32.82]
[1749441570873,9.84849666,151.54,151.53,32.82]
[1749441571280,9.84843143,151.54,151.53,32.82]
[1749441571474,9.84404839,151.54,151.53,32.82]
[1749441572075,9.84404839,151.54,151.53,35.55560704]
[1749441572382,9.84128244,151.54,151.53,42.15170704]
[1749441572972,9.84146723,151.54,151.53,42.15170704]
[1749441573182,9.84145501,151.54,151.53,42.15170704]
[1749441573480,5.46850591,151.54,151.53,42.15170704]
[1749441574280,9.84000355,151.54,151.53,42.15170704]
[1749441574580,5.46850591,151.54,151.53,42.15170704]
[1749441574969,9.84006884,151.54,151.53,42.15170704]
[1749441576380,9.84069873,151.54,151.53,42.15170704]
[1749441576582,9.84073337,151.54,151.53,42.15170704]
[1749441576885,9.84071504,151.54,151.53,42.15170704]
[1749441577984,5.46850591,151.54,151.53,42.15170704]
[1749441578182,9.84121393,151.54,151.53,42.15170704]
[1749441578383,9.84121521,151.54,151.53,42.15170704]
[1749441578585,9.84122132,151.54,151.53,42.15170704]
[1749441579784,5.46850591,151.54,151.53,42.15170704]
[1749441580087,10.04945068,151.54,151.53,42.15170704]
[1749441580287,10.04944987,151.54,151.53,42.15170704]
[1749441581588,10.0543819,151.54,151.53,42.15170704]
[1749441581782,10.05438189,151.54,151.53,42.15170704]
[1749441582182,5.46850591,151.54,151.53,42.15170704]
[1749441582487,10.0543819,151.54,151.53,42.15170704]
[1749441583589,4.37118504,151.57,151.56,6.5948]
[1749441583790,4.37118504,151.57,151.56,9.33040704]
[1749441583990,4.37118504,151.57,151.56,2.73560704]
[1749441585696,4.37118504,151.57,151.56,9.33040704]
[1749441595502,9.78335969,151.57,151.56,9.33040704]
[1749441598402,9.78335969,151.57,151.55,2.78257425]
[1749441598706,9.95050151,151.56,151.55,0.04696721]
[1749441599206,5.41171373,151.56,151.55,0.04696721]
[1749441599507,16.54573959,151.56,151.55,0.04696721]
[1749441599909,16.54608247,151.56,151.55,0.04696721]
[1749441600302,19.28170115,151.56,151.55,0.04696721]
[1749441600608,19.28170392,151.56,151.55,0.04696721]
[1749441601513,19.28118874,151.56,151.55,0.04696721]
[1749441601806,25.44743386,151.56,151.55,0.04696721]
[1749441602301,25.44745372,151.56,151.55,0.04696721]
[1749441603210,25.44682854,151.56,151.55,0.04696721]
[1749441603404,20.9129133,151.56,151.55,0.04696721]
[1749441603606,25.4465716,151.56,151.55,0.04696721]
[1749441603909,20.9129133,151.56,151.55,0.04696721]
[1749441604111,25.44657245,151.56,151.55,0.04696721]
[1749441604305,25.44657245,151.56,151.5,32.78]
[1749441604306,12.68097992,151.56,151.5,32.78]
[1749441604609,2.73560704,151.51,151.47,422.07390704]
[1749441604804,5.41171373,151.5,151.47,412.74]
[1749441605008,2.73560704,151.51,151.48,2.73560704]
[1749441605209,5.41051318,151.5,151.48,2.77919513]
[1749441605405,6.6411816,151.51,151.48,9.37709513]
[1749441605605,5.41040871,151.5,151.48,9.37709513]
[1749441605806,6.6411816,151.51,151.48,9.37709513]
[1749441606100,5.39828075,151.5,151.49,6.5978]
[1749441606709,5.39828075,151.5,151.48,6.64168809]
[1749441606910,0.0441816,151.51,151.48,9.37729513]
[1749441607107,5.39561559,151.5,151.48,9.37729513]
[1749441607308,6.6410816,151.51,151.48,9.37729513]
[1749441607506,5.39462718,151.5,151.49,6.5978]
[1749441608012,10.11679928,151.5,151.48,9.37729513]
[1749441608221,6.6411816,151.51,151.48,9.37729513]
[1749441608414,10.11531056,151.5,151.48,6.64168809]
[1749441608606,6.5977,151.5,151.48,0.04358809]
[1749441609511,9.33330704,151.5,151.48,0.04358809]
[1749441611121,6.5977,151.5,151.48,0.04358809]
[1749441612221,6.5978,151.49,151.48,0.04358809]
[1749441612418,11.97124629,151.49,151.48,0.04358809]
[1749441612622,16.68225613,151.49,151.48,0.04358809]
[1749441612823,11.30880984,151.49,151.48,0.04358809]
[1749441613322,16.67274327,151.49,151.48,0.04358809]
[1749441613523,11.30062532,151.49,151.48,0.04358809]
[1749441613925,11.30005955,151.49,151.48,0.04358809]
[1749441614121,4.70225955,151.49,151.48,0.04358809]
[1749441614425,3.70225736,151.49,151.48,0.04358809]
[1749441614627,9.33310704,151.5,151.48,0.04358809]
[1749441617332,6.5978,151.49,151.48,0.04358809]
[1749441623331,6.5976,151.5,151.48,2.77919513]
[1749441623531,0.0441816,151.51,151.48,2.77919513]
[1749441624033,11.99841513,151.51,151.48,9.37709513]
[1749441624425,11.99841513,151.51,151.48,9.37729513]
[1749441625733,6.6412816,151.51,151.48,9.37729513]
[1749441626731,6.5974,151.5,151.48,6.64168809]
[1749441627130,6.5974,151.5,151.48,0.04358809]
[1749441629435,6.5974,151.5,151.48,6.64178809]
[1749441630037,0.0441816,151.51,151.5,6.5974]
[1749441630232,0.0441816,151.51,151.5,2.73560704]
[1749441630738,0.0441816,151.51,151.5,9.33300704]
[1749441638742,0.0441816,151.51,151.5,2.73560704]
[1749441639749,0.0441816,151.51,151.5,9.33300704]
[1749441640044,0.0441816,151.51,151.5,2.73560704]
[1749441644052,10.14212243,151.51,151.5,2.73560704]
[1749441644250,5.43374143,151.51,151.5,2.73560704]
[1749441644450,10.14669174,151.51,151.5,2.73560704]
[1749441644855,10.14669576,151.51,151.5,2.73560704]
[1749441645552,10.14670026,151.51,151.5,2.73560704]
[1749441646359,5.43374143,151.51,151.5,2.73560704]
[1749441646551,10.14670073,151.51,151.5,2.73560704]
[1749441646952,10.14935442,151.51,151.5,2.73560704]
[1749441647259,10.14934992,151.51,151.5,2.73560704]
[1749441647758,10.14935442,151.51,151.5,2.73560704]
[1749441648261,10.14935442,151.51,151.48,0.04358809]
[1749441648457,10.1085647,151.5,151.48,2.77919513]
[1749441648656,10.1085647,151.49,151.48,2.77919513]
[1749441648854,5.39295171,151.49,151.48,9.37739513]
[1749441649055,10.10773182,151.49,151.48,9.37739513]
[1749441649252,10.10773306,151.49,151.48,9.37739513]
[1749441649452,10.10723951,151.49,151.48,9.37739513]
[1749441649652,10.10723951,151.49,151.48,0.04358809]
[1749441650053,16.70503951,151.49,151.48,0.04358809]
[1749441650756,11.99075171,151.49,151.48,0.04358809]
[1749441651152,16.69624439,151.49,151.48,0.04358809]
[1749441651862,16.69523769,151.49,151.48,0.04358809]
[1749441652362,11.99075171,151.49,151.48,0.04358809]
[1749441652759,16.69523769,151.49,151.48,0.04358809]
[1749441652958,16.69469796,151.49,151.48,0.04358809]
[1749441653463,16.69505143,151.49,151.48,0.04358809]
[1749441654462,16.69505192,151.49,151.48,0.04358809]
[1749441654765,11.99075171,151.49,151.48,0.04358809]
[1749441654962,16.69505424,151.49,151.48,0.04358809]
[1749441655463,10.09725424,151.49,151.48,0.04358809]
[1749441655864,5.39295171,151.49,151.48,0.04358809]
[1749441656362,10.09656789,151.49,151.48,9.37739513]
[1749441656764,4.70361618,151.49,151.48,9.37739513]
[1749441657665,0.0441816,151.51,151.48,2.77919513]
[1749441657855,0.0441816,151.51,151.5,2.73560704]
[1749441658054,6.5954,151.55,151.5,2.73560704]
[1749441658260,10.08714597,151.54,151.52,2.73560704]
[1749441658459,10.08714597,151.53,151.52,2.73560704]
[1749441658663,10.08714597,151.53,151.52,9.33200704]
[1749441658859,10.08512616,151.53,151.52,9.33200704]
[1749441659059,6.5954,151.55,151.52,9.33200704]
[1749441659268,5.43241572,151.54,151.52,9.33200704]
[1749441659566,0.04584478,151.54,151.52,9.33200704]
[1749441659962,10.08355426,151.53,151.52,9.33200704]
[1749441661062,10.08188497,151.53,151.52,9.33200704]
[1749441662965,10.09914328,151.53,151.52,9.33200704]
[1749441663160,5.38586625,151.53,151.52,9.33200704]
[1749441663366,10.09914328,151.53,151.52,2.73560704]
[1749441663567,10.09914328,151.53,151.51,39.38506426]
[1749441663767,9.37715182,151.54,151.51,39.38506426]
[1749441663966,10.10430071,151.53,151.51,39.38506426]
[1749441664170,9.37715182,151.54,151.51,39.38506426]
[1749441664368,10.10669697,151.53,151.51,39.38506426]
[1749441664563,9.37715182,151.54,151.51,39.38506426]
[1749441664764,10.10706156,151.53,151.51,42.1206713]
[1749441665065,6.64154478,151.54,151.51,42.1206713]
[1749441665265,10.1070609,151.53,151.51,42.1206713]
[1749441665466,6.64154478,151.54,151.51,42.1206713]
[1749441665765,10.10680854,151.53,151.51,42.1206713]
[1749441665965,6.64154478,151.54,151.51,42.1206713]
[1749441666166,10.10702112,151.53,151.51,42.1206713]
[1749441666366,6.64154478,151.54,151.51,42.1206713]
[1749441666562,5.39340104,151.53,151.51,42.1206713]
[1749441666770,6.64154478,151.54,151.51,42.1206713]
[1749441667068,10.1100917,151.53,151.51,42.1206713]
[1749441667269,6.64154478,151.54,151.51,42.1206713]
[1749441667469,10.10998756,151.53,151.51,42.1206713]
[1749441667671,6.64154478,151.54,151.51,42.1206713]
[1749441667861,10.11027526,151.53,151.51,42.1206713]
[1749441668063,4.71652337,151.52,151.51,42.1206713]
[1749441669272,4.71729152,151.52,151.51,42.1206713]
[1749441669968,6.5961,151.53,151.51,42.1206713]
[1749441670167,6.5961,151.53,151.51,35.5238713]
[1749441670364,10.11312859,151.52,151.51,35.5238713]
[1749441670668,10.11314179,151.52,151.51,35.5238713]
[1749441670869,10.11314069,151.52,151.51,35.5238713]
[1749441671872,5.39514865,151.52,151.51,35.5238713]
[1749441672471,4.71820508,151.52,151.51,35.5238713]
[1749441672770,16.71014579,151.52,151.51,0.04826426]
[1749441673569,11.99206906,151.52,151.51,0.04826426]
[1749441673873,16.71050632,151.52,151.51,0.04826426]
[1749441674169,16.7113388,151.52,151.51,0.04826426]
[1749441674969,11.99206906,151.52,151.51,0.04826426]
[1749441675269,16.71148617,151.52,151.51,0.04826426]
[1749441675670,19.44709321,151.52,151.51,0.04826426]
[1749441676471,14.7276761,151.52,151.51,0.04826426]
[1749441676673,11.99206906,151.52,151.51,0.04826426]
[1749441676873,16.7070735,151.52,151.51,0.04826426]
[1749441677074,19.44268054,151.52,151.51,0.04826426]
[1749441677572,19.44257879,151.52,151.51,0.04826426]
[1749441677969,19.44257879,151.52,151.47,35.47560704]
[1749441677970,6.5977,151.5,151.47,35.47560704]
[1749441678171,10.10909259,151.49,151.47,35.47560704]
[1749441678363,2.73560704,151.51,151.47,35.47560704]
[1749441678565,5.39850191,151.5,151.47,35.47560704]
[1749441678766,11.99650191,151.49,151.47,35.47560704]
[1749441678973,6.598,151.49,151.47,35.47560704]
[1749441679471,12.84578329,151.48,151.44,32.74]
[1749441679670,12.84578329,151.47,151.44,32.74]
[1749441679874,10.11017625,151.46,151.44,32.74]
[1749441680176,2.73560704,151.47,151.44,32.74]
[1749441680471,2.73560704,151.47,151.44,32.78381083]
[1749441680472,5.39035278,151.46,151.44,32.78381083]
[1749441680671,6.5994,151.46,151.44,32.78381083]
[1749441680977,2.73560704,151.47,151.44,32.78381083]
[1749441681172,10.09841682,151.46,151.44,32.78381083]
[1749441681371,9.33450704,151.47,151.44,32.78381083]
[1749441681571,10.08010652,151.46,151.44,32.78381083]
[1749441681771,9.33450704,151.47,151.44,39.38371083]
[1749441681974,5.38616271,151.46,151.44,39.38371083]
[1749441682171,9.33450704,151.47,151.44,39.38371083]
[1749441682374,10.07787287,151.46,151.44,39.38371083]
[1749441682574,9.33450704,151.47,151.44,39.38371083]
[1749441682775,11.28667837,151.46,151.44,32.78381083]
[1749441683076,6.5991,151.46,151.44,32.78381083]
[1749441684877,11.28285298,151.45,151.44,32.78381083]
[1749441685180,10.06342287,151.45,151.44,32.78381083]
[1749441685575,4.68258496,151.45,151.44,32.78381083]
[1749441685775,4.68239725,151.45,151.44,32.78381083]
[1749441686078,10.05090258,151.45,151.44,32.78381083]
[1749441686274,6.5995,151.45,151.44,32.78381083]
[1749441686577,11.26789284,151.45,151.44,32.78381083]
[1749441687175,16.63397929,151.45,151.44,32.78381083]
[1749441687379,16.63382524,151.45,151.44,32.78381083]
[1749441687679,6.5995,151.45,151.44,32.78381083]
[1749441687878,11.26773817,151.45,151.44,32.78381083]
[1749441688874,10.02993771,151.45,151.41,32.72]
[1749441689079,4.32491789,151.46,151.41,32.72]
[1749441689580,6.6004,151.44,151.41,32.72]
[1749441689979,6.6004,151.44,151.41,32.76741108]
[1749441691185,6.6004,151.43,151.41,32.76741108]
[1749441697693,6.6004,151.43,151.41,39.36871108]
[1749441697892,6.6001,151.44,151.41,39.36871108]
[1749441698694,6.6004,151.43,151.41,32.76741108]
[1749441700397,4.32491789,151.46,151.41,32.76741108]
[1749441700398,6.6008,151.42,151.41,32.76741108]
[1749441700587,4.27888415,151.44,151.41,32.76741108]
[1749441700992,6.6004,151.43,151.41,32.76741108]
[1749441704995,6.6008,151.42,151.41,32.76741108]